bitfinex/quotes_BTCUSD_20250719
["timestamp","ask_amount","ask_price","bid_price","bid_amount"]
[1752887490923,0.06341031,117870.0,117860.0,0.42295457]
[1752887491128,0.07189401,117870.0,117860.0,0.42295457]
[1752887491352,0.08037836,117870.0,117860.0,0.42245457]
[1752887491766,0.07189451,117870.0,117860.0,0.42245457]
[1752887492253,0.07189451,117870.0,117860.0,0.49061457]
[1752887492463,0.05492704,117870.0,117860.0,0.49061457]
[1752887492803,0.05692704,117870.0,117860.0,0.49061457]
[1752887493115,0.06541081,117870.0,117860.0,0.49061457]
[1752887493426,0.06541081,117870.0,117860.0,0.2633059]
[1752887493607,0.06541081,117870.0,117860.0,0.49061457]
[1752887493849,0.06541081,117870.0,117860.0,0.2633059]
[1752887494034,0.10695112,117870.0,117860.0,0.2633059]
[1752887494276,0.10695112,117870.0,117860.0,0.49061457]
[1752887495424,0.04844341,117870.0,117860.0,0.49061457]
[1752887495615,0.05692697,117870.0,117860.0,0.49061457]
[1752887496064,0.06541067,117870.0,117860.0,0.42245457]
[1752887496273,0.06541067,117870.0,117860.0,0.49061457]
[1752887496727,0.07389452,117870.0,117860.0,0.48213044]
[1752887496963,0.08237844,117870.0,117860.0,0.49909893]
[1752887498822,0.07389452,117870.0,117860.0,0.50758306]
[1752887499228,0.06541067,117870.0,117860.0,0.50758306]
[1752887499487,0.04844341,117870.0,117860.0,0.50758306]
[1752887499688,0.06541074,117870.0,117860.0,0.50758306]
[1752887500389,0.05692697,117870.0,117860.0,0.50758306]
[1752887500633,0.06541067,117870.0,117860.0,0.50758306]
[1752887501025,0.05692697,117870.0,117860.0,0.50758306]
[1752887501260,0.0569269,117870.0,117860.0,0.50758306]
[1752887501480,0.0569269,117870.0,117860.0,0.73539173]
[1752887501481,0.0348,117870.0,117860.0,0.73539173]
[1752887501697,0.0183,117870.0,117860.0,0.73539173]
[1752887501913,0.002,117870.0,117860.0,0.82090201]
[1752887502124,0.002,117870.0,117860.0,0.82121201]
[1752887502336,0.002,117870.0,117860.0,0.85361201]
[1752887503391,0.0312,117890.0,117880.0,0.19511279]
[1752887503569,0.0312,117890.0,117880.0,0.49108146]
[1752887504817,0.03968183,117890.0,117880.0,0.49108146]
[1752887505242,0.05132381,117890.0,117880.0,0.49108146]
[1752887505375,0.04284183,117890.0,117880.0,0.49108146]
[1752887505588,0.03436,117890.0,117880.0,0.49108146]
[1752887505991,0.0161,117890.0,117880.0,0.49108146]
[1752887506232,0.05973226,117900.0,117890.0,0.19509625]
[1752887506444,0.06173226,117900.0,117890.0,0.42240492]
[1752887506658,0.06173226,117900.0,117890.0,0.42290492]
[1752887507011,0.07021373,117900.0,117890.0,0.42290492]
[1752887507503,0.08169535,117900.0,117890.0,0.42405401]
[1752887507669,0.0742856,117900.0,117890.0,0.42405401]
[1752887507875,0.08276729,117900.0,117890.0,0.42405401]
[1752887508095,0.08276729,117900.0,117890.0,0.42355401]
[1752887508329,0.04036,117900.0,117890.0,0.42405401]
[1752887508537,0.04889759,117900.0,117890.0,0.42405401]
[1752887509354,0.06586003,117900.0,117890.0,0.42405401]
[1752887509555,0.08282305,117900.0,117890.0,0.42405401]
[1752887509765,0.08082297,117900.0,117890.0,0.42405401]
[1752887509969,0.04684111,117900.0,117890.0,0.42405401]
[1752887510152,0.05532244,117900.0,117890.0,0.42405401]
[1752887510585,0.06380398,117900.0,117890.0,0.42405401]
[1752887511200,0.08276729,117900.0,117890.0,0.42405401]
[1752887511644,0.0742856,117900.0,117890.0,0.42405401]
[1752887512323,0.06580398,117900.0,117890.0,0.42405401]
[1752887513142,0.0742856,117900.0,117890.0,0.42405401]
[1752887513375,0.09142579,117900.0,117890.0,0.42405401]
[1752887513833,0.0829441,117900.0,117890.0,0.42405401]
[1752887514065,0.07446248,117900.0,117890.0,0.42405401]
[1752887514500,0.07446241,117900.0,117890.0,0.42405401]
[1752887515256,0.08294403,117900.0,117890.0,0.42405401]
[1752887515950,0.07446241,117900.0,117890.0,0.42405401]
[1752887516174,0.08294395,117900.0,117890.0,0.42405401]
[1752887516605,0.09142564,117900.0,117890.0,0.42405401]
[1752887516816,0.09142564,117900.0,117890.0,0.42355401]
[1752887518271,0.08294453,117900.0,117890.0,0.41507203]
[1752887518577,0.08294453,117900.0,117890.0,0.42355415]
[1752887518763,0.08294453,117900.0,117890.0,0.43203613]
[1752887519955,0.25257981,117900.0,117890.0,0.18776336]
[1752887520174,0.25257981,117900.0,117890.0,0.4320362]
[1752887520858,0.08294453,117900.0,117890.0,0.44051818]
[1752887521122,0.07446284,117900.0,117890.0,0.44051818]
[1752887521351,0.07446284,117900.0,117890.0,0.20472753]
[1752887521352,0.08294446,117900.0,117890.0,0.20472753]
[1752887521572,0.08294446,117900.0,117890.0,0.44051818]
[1752887522242,0.0659813,117900.0,117890.0,0.44101818]
[1752887522462,0.0639813,117900.0,117890.0,0.21370951]
[1752887522909,0.07246292,117900.0,117890.0,0.44101818]
[1752887523132,0.08305468,117900.0,117890.0,0.44101818]
[1752887523348,0.0488813,117900.0,117890.0,0.44101818]
[1752887523566,0.05420292,117900.0,117890.0,0.44101818]
[1752887523774,0.0457213,117900.0,117890.0,0.44101818]
[1752887524221,0.06132094,117900.0,117890.0,0.44101818]
[1752887524405,0.06132087,117900.0,117890.0,0.44101818]
[1752887524868,0.06980227,117900.0,117890.0,0.44101818]
[1752887525087,0.08676543,117900.0,117890.0,0.44101818]
[1752887525316,0.08993543,117900.0,117890.0,0.44101818]
[1752887525593,0.004,117900.0,117890.0,0.66832685]
[1752887525795,0.01248118,117900.0,117890.0,0.66832685]
[1752887527684,0.004,117900.0,117890.0,0.66832685]
[1752887527898,0.02080654,117900.0,117890.0,0.66832685]
[1752887528178,0.01248126,117900.0,117890.0,0.66832685]
[1752887528392,0.004,117900.0,117890.0,0.66832685]
[1752887528716,0.01248118,117900.0,117890.0,0.66832685]
[1752887529145,0.004,117900.0,117890.0,0.66832685]
[1752887529355,0.0204,117900.0,117890.0,0.66832685]
[1752887529565,0.01248126,117900.0,117890.0,0.66832685]
[1752887529758,0.02888118,117900.0,117890.0,0.66832685]
[1752887531003,0.02965475,117900.0,117890.0,0.66832685]
[1752887531245,0.01269224,117900.0,117890.0,0.66832685]
[1752887531493,0.004,117900.0,117890.0,0.75383713]
[1752887532382,0.004,117900.0,117890.0,0.78604713]
[1752887533123,0.003,117900.0,117890.0,0.78604713]
[1752887533353,0.06643945,117920.0,117910.0,0.19506315]
[1752887533573,0.08019963,117920.0,117910.0,0.49041182]
[1752887533789,0.07171945,117920.0,117910.0,0.49041182]
[1752887533975,0.06323956,117920.0,117910.0,0.49041182]
[1752887534422,0.08019969,117920.0,117910.0,0.49041182]
[1752887534852,0.06323956,117920.0,117910.0,0.49041182]
[1752887535257,0.06323949,117920.0,117910.0,0.49191182]
[1752887535476,0.06723949,117920.0,117910.0,0.49191182]
[1752887535688,0.08419963,117920.0,117910.0,0.49191182]
[1752887535899,0.09268053,117920.0,117910.0,0.49141196]
[1752887536108,0.09268053,117920.0,117910.0,0.49989257]
[1752887536558,0.24532726,117920.0,117910.0,0.48293128]
[1752887536798,0.24632726,117920.0,117910.0,0.48293128]
[1752887537014,0.23784708,117920.0,117910.0,0.31331068]
[1752887537230,0.23784708,117920.0,117910.0,0.49141247]
[1752887537781,0.23784708,117920.0,117910.0,0.49989329]
[1752887538013,0.23784708,117920.0,117910.0,0.50837404]
[1752887538223,0.23784708,117920.0,117910.0,0.50837361]
[1752887538854,0.06824057,117920.0,117910.0,0.50837361]
[1752887539060,0.06824057,117920.0,117910.0,0.499893]
[1752887539266,0.23784708,117920.0,117910.0,0.499893]
[1752887539542,0.23784708,117920.0,117910.0,0.24714186]
[1752887539798,0.22936683,117920.0,117910.0,0.47445053]
[1752887542942,0.22936683,117920.0,117910.0,0.48293135]
[1752887543786,0.22936683,117920.0,117910.0,0.47445053]
[1752887544005,0.22088651,117920.0,117910.0,0.29634867]
[1752887551056,0.22088651,117920.0,117910.0,0.06904]
[1752887551476,0.22088651,117920.0,117910.0,0.29553637]
[1752887551691,0.22088651,117920.0,117910.0,0.46515726]
[1752887551901,0.22088651,117920.0,117910.0,0.70013467]
[1752887552121,0.22088651,117920.0,117910.0,0.70861564]
[1752887552525,0.22088651,117920.0,117910.0,0.52203274]
[1752887553170,0.22088651,117920.0,117910.0,0.29553637]
[1752887557451,0.21248651,117920.0,117910.0,0.29553637]
[1752887557669,0.21248651,117920.0,117910.0,0.30401741]
[1752887557887,0.21248651,117920.0,117910.0,0.31299838]
[1752887558104,0.21248651,117920.0,117910.0,0.53949475]
[1752887558320,0.21248651,117920.0,117910.0,0.08650201]
[1752887558525,0.21248651,117920.0,117910.0,0.53949475]
[1752887558743,0.0218,117920.0,117910.0,0.72607693]
[1752887558944,0.03875949,117920.0,117910.0,0.72607693]
[1752887559157,0.0218,117920.0,117910.0,0.72607693]
[1752887559392,0.0054,117920.0,117910.0,0.72607693]
[1752887560062,0.01387967,117920.0,117910.0,0.72607693]
[1752887560269,0.0054,117920.0,117910.0,0.72607693]
[1752887560497,0.01387975,117920.0,117910.0,0.27308419]
[1752887560706,0.03755964,117920.0,117910.0,0.72607693]
[1752887561144,0.04603967,117920.0,117910.0,0.49955122]
[1752887561329,0.0642096,117920.0,117910.0,0.49955122]
[1752887562115,0.0726897,117920.0,117910.0,0.49955122]
[1752887562321,0.0642096,117920.0,117910.0,0.49955122]
[1752887562524,0.0726897,117920.0,117910.0,0.49955122]
[1752887562746,0.08326995,117920.0,117910.0,0.49955122]
[1752887562932,0.0747897,117920.0,117910.0,0.49955122]
[1752887563294,0.08326988,117920.0,117910.0,0.49955122]
[1752887563487,0.08326988,117920.0,117910.0,0.27300419]
[1752887563762,0.08326988,117920.0,117910.0,0.49947122]
[1752887564173,0.08326988,117920.0,117910.0,0.43151122]
[1752887564621,0.08326988,117920.0,117910.0,0.49947122]
[1752887564937,0.03755964,117920.0,117910.0,0.49947122]
[1752887565152,0.0054,117920.0,117910.0,0.49947122]
[1752887566222,0.0054,117920.0,117910.0,0.43151122]
[1752887566431,0.0054,117920.0,117910.0,0.49943122]
[1752887566644,0.0054,117920.0,117910.0,0.51583122]
[1752887567483,0.0054,117920.0,117910.0,0.49943122]
[1752887568551,0.01387967,117920.0,117910.0,0.49943122]
[1752887568759,0.0054,117920.0,117910.0,0.49943122]
[1752887569406,0.01387982,117920.0,117910.0,0.49943122]
[1752887569849,0.04653981,117920.0,117910.0,0.49943122]
[1752887570093,0.04653974,117920.0,117910.0,0.49943122]
[1752887570298,0.03805971,117920.0,117910.0,0.49943122]
[1752887570506,0.04653974,117920.0,117910.0,0.49943122]
[1752887570805,0.05501992,117920.0,117910.0,0.49943122]
[1752887571015,0.04653974,117920.0,117910.0,0.49943122]
[1752887571619,0.06203974,117920.0,117910.0,0.49943122]
[1752887571963,0.03805971,117920.0,117910.0,0.27296419]
[1752887572167,0.03805971,117920.0,117910.0,0.49943122]
[1752887572375,0.04653974,117920.0,117910.0,0.49943122]
[1752887572590,0.05501992,117920.0,117910.0,0.49893122]
[1752887572801,0.06730974,117920.0,117910.0,0.49893122]
[1752887573413,0.05672971,117920.0,117910.0,0.49943122]
[1752887573617,0.0054,117920.0,117910.0,0.49943122]
[1752887577024,0.01387975,117920.0,117910.0,0.49943122]
[1752887577235,0.0054,117920.0,117910.0,0.49943122]
[1752887577865,0.01387967,117920.0,117910.0,0.49943122]
[1752887578050,0.0054,117920.0,117910.0,0.49943122]
[1752887579158,0.01387982,117920.0,117910.0,0.49943122]
[1752887579430,0.02235978,117920.0,117910.0,0.49943122]
[1752887579638,0.01387982,117920.0,117910.0,0.49943122]
[1752887580340,0.0054,117920.0,117910.0,0.5849415]
[1752887581825,0.0054,117920.0,117910.0,0.81140853]
[1752887582053,0.0054,117920.0,117910.0,0.82681853]
[1752887582272,0.0054,117920.0,117910.0,0.84331853]
[1752887582691,0.0004,117920.0,117910.0,0.6158515]
[1752887582940,0.0034,117920.0,117910.0,0.6158515]
[1752887583157,0.0034,117920.0,117910.0,0.82570475]
[1752887583586,0.0034,117920.0,117910.0,0.81060475]
[1752887583787,0.0034,117920.0,117910.0,0.81029475]
[1752887584033,0.0034,117920.0,117910.0,1.03670489]
[1752887584235,0.0034,117920.0,117910.0,0.81029475]
[1752887587376,0.0034,117920.0,117910.0,0.82590475]
[1752887588011,0.0034,117920.0,117910.0,1.05231489]
[1752887589287,0.0034,117920.0,117910.0,0.81029475]
[1752887589723,0.0034,117920.0,117910.0,0.81060475]
[1752887590137,0.0034,117920.0,117910.0,1.03701489]
[1752887590359,0.0034,117920.0,117910.0,1.05271489]
[1752887594159,0.0034,117920.0,117910.0,1.82956267]
[1752887594331,0.0034,117920.0,117910.0,3.34631667]
[1752887594532,0.0034,117920.0,117910.0,2.47218925]
[1752887594716,0.0034,117920.0,117910.0,2.40142925]
[1752887594921,0.0034,117920.0,117910.0,2.22486941]
[1752887595326,0.0004,117920.0,117910.0,2.22686941]
[1752887595551,0.0004,117920.0,117910.0,2.23826941]
[1752887596159,1e-08,117920.0,117910.0,2.23826941]
[1752887597447,1e-08,117920.0,117910.0,2.1704929]
[1752887598423,1e-08,117920.0,117910.0,1.7385849]
[1752887598609,1e-08,117920.0,117910.0,1.6099809]
[1752887600984,1e-08,117920.0,117910.0,1.3953359]
[1752887603049,1e-08,117920.0,117910.0,1.3274159]
[1752887603272,1e-08,117920.0,117910.0,1.3689799]
[1752887609227,1e-08,117920.0,117910.0,2.2456049]
[1752887611386,1e-08,117920.0,117910.0,2.1612059]
[1752887611772,1e-08,117920.0,117910.0,2.0190149]
[1752887611984,1e-08,117920.0,117910.0,1.8698519]
[1752887612191,1e-08,117920.0,117910.0,1.4798069]
[1752887616128,1e-08,117920.0,117910.0,1.4645069]
[1752887617123,1e-08,117920.0,117910.0,2.36980696]
[1752887617345,0.0104,117930.0,117920.0,0.54958746]
[1752887617564,0.0415,117930.0,117920.0,0.92914618]
[1752887617767,0.0415,117930.0,117920.0,0.92964618]
[1752887618583,0.0415,117930.0,117920.0,0.93064618]
[1752887618795,0.0425,117930.0,117920.0,0.93064618]
[1752887620069,0.0272,117930.0,117920.0,0.93064618]
[1752887620925,0.0272,117930.0,117920.0,2.06228838]
[1752887623561,0.0425,117930.0,117920.0,2.06228838]
[1752887627597,0.0425,117930.0,117920.0,2.16400838]
[1752887628743,0.04551,117930.0,117920.0,2.16400838]
[1752887633108,0.04551,117930.0,117920.0,2.16396838]
[1752887633388,0.03533813,117930.0,117920.0,2.16396838]
[1752887635025,0.03232813,117930.0,117920.0,2.16396838]
[1752887635259,0.01702813,117930.0,117920.0,2.16396838]
[1752887636976,0.03232813,117930.0,117920.0,2.16396838]
[1752887638135,0.01702813,117930.0,117920.0,2.16396838]
[1752887638564,0.03262813,117930.0,117920.0,2.16396838]
[1752887640731,0.03565813,117930.0,117920.0,2.16396838]
[1752887641415,0.03781813,117930.0,117920.0,2.09578838]
[1752887641656,0.03781813,117930.0,117920.0,1.48444306]
[1752887642959,0.03781813,117930.0,117920.0,2.16342838]
[1752887643383,0.03781813,117930.0,117920.0,2.16392838]
[1752887644471,0.03565813,117930.0,117920.0,2.16392838]
[1752887645014,0.03565813,117930.0,117920.0,0.80595774]
[1752887645226,0.03565813,117930.0,117920.0,2.16392838]
[1752887647398,0.03781813,117930.0,117920.0,2.16392838]
[1752887652934,0.03262813,117930.0,117920.0,2.16392838]
[1752887653364,0.03262813,117930.0,117920.0,0.80595774]
[1752887653577,0.03262813,117930.0,117920.0,2.16392838]
[1752887655044,0.03565813,117930.0,117920.0,2.16392838]
[1752887656286,0.03262813,117930.0,117920.0,2.16392838]
[1752887658797,0.03565813,117930.0,117920.0,2.16392838]
[1752887659005,0.02005813,117930.0,117920.0,2.16392838]
[1752887659240,0.03615813,117930.0,117920.0,2.16392838]
[1752887661407,0.03607333,117930.0,117920.0,2.16392838]
[1752887661737,0.03607333,117930.0,117920.0,1.7112715]
[1752887661950,0.03607333,117930.0,117920.0,2.16392838]
[1752887662169,0.03823333,117930.0,117920.0,1.48494306]
[1752887663129,0.03823333,117930.0,117920.0,2.16392838]
[1752887666654,0.03823333,117930.0,117920.0,2.16369009]
[1752887668250,0.03823333,117930.0,117920.0,2.09605009]
[1752887668468,0.03823333,117930.0,117920.0,2.16361009]
[1752887669591,0.03823333,117930.0,117920.0,0.80563945]
[1752887669715,0.03823333,117930.0,117920.0,2.16361009]
[1752887672959,0.13823333,117930.0,117920.0,2.16361009]
[1752887679335,0.11694333,117930.0,117920.0,2.16361009]
[1752887679568,0.10114333,117930.0,117920.0,2.16361009]
[1752887681155,1e-08,117930.0,117920.0,3.13126009]
[1752887681362,1e-08,117930.0,117920.0,3.21286008]
[1752887683080,1e-08,117930.0,117920.0,3.21486008]
[1752887683526,1e-08,117930.0,117920.0,3.18326008]
[1752887685866,1e-08,117930.0,117920.0,3.21346008]
[1752887687090,1e-08,117930.0,117920.0,3.19846008]
[1752887689215,1e-08,117930.0,117920.0,3.18326008]
[1752887689419,1e-08,117930.0,117920.0,3.21376008]
[1752887691099,1.346e-05,117940.0,117930.0,0.53503007]
[1752887691302,0.03131346,117940.0,117930.0,2.98363699]
[1752887691551,0.03131346,117940.0,117930.0,1.28237435]
[1752887691777,0.03131346,117940.0,117930.0,2.31852199]
[1752887691994,0.03442346,117940.0,117930.0,2.31852199]
[1752887692439,0.03442346,117940.0,117930.0,2.04764008]
[1752887692684,0.03442346,117940.0,117930.0,1.68576576]
[1752887692941,0.03442346,117940.0,117930.0,1.62682676]
[1752887694170,0.03442346,117940.0,117930.0,2.30581208]
[1752887703548,0.03442346,117940.0,117930.0,2.40753208]
[1752887710923,0.03442346,117940.0,117930.0,2.75310908]
[1752887711594,0.03442346,117940.0,117930.0,2.64947908]
[1752887711841,0.03442346,117940.0,117930.0,2.62619908]
[1752887712302,0.03442346,117940.0,117930.0,2.59389908]
[1752887712543,0.0004,117970.0,117960.0,0.03997232]
[1752887712768,0.0004,117970.0,117960.0,1.72248159]
[1752887712990,0.00247,117970.0,117960.0,0.97401691]
[1752887713208,0.00247,117970.0,117960.0,1.04137691]
[1752887714055,0.01294608,117970.0,117960.0,0.73314762]
[1752887714282,0.01094608,117970.0,117960.0,0.80050762]
[1752887714499,0.0194223,117970.0,117960.0,0.80050762]
[1752887714727,0.0225223,117970.0,117960.0,0.80150762]
[1752887714961,0.03099867,117970.0,117960.0,0.80150762]
[1752887715186,0.0225223,117970.0,117960.0,0.80150762]
[1752887715416,0.01404608,117970.0,117960.0,0.80150762]
[1752887715652,0.04574608,117970.0,117960.0,0.80150762]
[1752887716394,0.05422238,117970.0,117960.0,0.80150762]
[1752887716611,0.0542223,117970.0,117960.0,0.34885074]
[1752887716833,0.0542223,117970.0,117960.0,0.80150762]
[1752887717048,0.05422223,117970.0,117960.0,0.80150762]
[1752887717290,0.03727,117970.0,117960.0,0.80150762]
[1752887718791,0.03727,117970.0,117960.0,0.34885074]
[1752887719018,0.03727,117970.0,117960.0,0.80150762]
[1752887719784,0.03727,117970.0,117960.0,1.02783606]
[1752887720155,0.04574622,117970.0,117960.0,1.02883606]
[1752887720362,0.04574615,117970.0,117960.0,1.02883606]
[1752887720853,0.03727,117970.0,117960.0,1.02883606]
[1752887728620,0.0321,117970.0,117960.0,1.03084606]
[1752887728821,0.0157,117970.0,117960.0,1.03084606]
[1752887729183,0.0162,117970.0,117960.0,1.03084606]
[1752887729605,0.0004,117970.0,117960.0,1.70983138]
[1752887730062,6.262e-05,117970.0,117960.0,1.70983138]
[1752887730311,0.03564483,117980.0,117970.0,0.19496393]
[1752887730508,0.03776483,117980.0,117970.0,1.02673953]
[1752887731590,0.03826352,117980.0,117970.0,1.02673953]
[1752887733164,0.03305352,117980.0,117970.0,1.02874953]
[1752887733902,0.03826352,117980.0,117970.0,1.02874953]
[1752887736401,0.03826352,117980.0,117970.0,0.34976421]
[1752887736573,0.03826352,117980.0,117970.0,1.02874953]
[1752887741922,0.03305352,117980.0,117970.0,1.02874953]
[1752887742132,0.00205352,117980.0,117970.0,1.7222757]
[1752887742336,0.00205352,117980.0,117970.0,1.04631038]
[1752887742560,0.00205352,117980.0,117970.0,1.38631038]
[1752887742727,0.00205352,117980.0,117970.0,1.38329038]
[1752887743698,0.00205352,117980.0,117970.0,1.40261038]
[1752887743910,0.00205352,117980.0,117970.0,2.32694721]
[1752887744112,0.00205352,117980.0,117970.0,2.34334721]
[1752887744947,0.00205352,117980.0,117970.0,2.36816547]
[1752887745153,0.00205352,117980.0,117970.0,2.30038896]
[1752887745566,1e-08,117980.0,117970.0,2.30038896]
[1752887745776,1e-08,117980.0,117970.0,2.35238896]
[1752887746457,1e-08,117990.0,117980.0,1.92561806]
[1752887746667,1e-08,117990.0,117980.0,4.12793243]
[1752887746870,1e-08,117990.0,117980.0,4.13095243]
[1752887747074,1e-08,117990.0,117980.0,4.09961643]
[1752887747284,1e-08,117990.0,117980.0,4.01084027]
[1752887747892,1e-08,117990.0,117980.0,4.01384027]
[1752887748100,1e-08,117990.0,117980.0,3.50547227]
[1752887748315,1e-08,117990.0,117980.0,3.50747227]
[1752887748516,1e-08,117990.0,117980.0,3.28452927]
[1752887748924,1e-08,117990.0,117980.0,3.28252927]
[1752887749138,1e-08,117990.0,117980.0,3.28552927]
[1752887749553,1e-08,117990.0,117980.0,2.12329139]
[1752887751266,1e-08,117990.0,117980.0,1.9670074]
[1752887751481,1e-08,117990.0,117980.0,1.38746648]
[1752887751688,1e-08,117990.0,117980.0,1.36866648]
[1752887752124,1e-08,117990.0,117980.0,1.31519448]
[1752887753209,1e-08,117990.0,117980.0,1.5442344]
[1752887753681,1e-08,117990.0,117980.0,1.5760344]
[1752887754411,1e-08,117990.0,117980.0,1.5800344]
[1752887756114,1e-08,117990.0,117980.0,1.6300344]
[1752887756348,1e-08,117990.0,117980.0,1.68003439]
[1752887757060,1e-08,117990.0,117980.0,1.69653439]
[1752887759829,0.0165,118010.0,118000.0,0.20945522]
[1752887760060,0.0165,118010.0,118000.0,1.31614534]
[1752887760315,0.0004,118010.0,118000.0,1.15614534]
[1752887760555,0.0004,118010.0,118000.0,1.15919534]
[1752887760797,0.017,118010.0,118000.0,1.15614534]
[1752887761031,0.0322,118010.0,118000.0,1.15614534]
[1752887762247,0.017,118010.0,118000.0,2.14568334]
[1752887762485,0.017,118010.0,118000.0,1.4004975]
[1752887762723,0.017,118010.0,118000.0,1.85253734]
[1752887763169,0.017,118010.0,118000.0,1.79988134]
[1752887763170,0.0004,118010.0,118000.0,1.79988134]
[1752887763410,0.0004,118010.0,118000.0,1.80293134]
[1752887764105,0.0004,118010.0,118000.0,1.80393134]
[1752887765470,0.0004,118010.0,118000.0,0.9680775]
[1752887765706,0.0161,118010.0,118000.0,1.41706734]
[1752887766367,0.0004,118010.0,118000.0,1.41706734]
[1752887767073,0.0004,118010.0,118000.0,1.42011734]
[1752887767286,0.0261,118020.0,118010.0,0.20943871]
[1752887767509,0.0261,118020.0,118010.0,0.81612883]
[1752887767934,0.0419,118020.0,118010.0,0.81612883]
[1752887769888,0.04705,118020.0,118010.0,0.81612883]
[1752887770544,0.04705,118020.0,118010.0,0.81712883]
[1752887770789,0.04705,118020.0,118010.0,0.81812883]
[1752887771472,0.0261,118020.0,118010.0,0.81812883]
[1752887774988,0.0261,118020.0,118010.0,0.86812883]
[1752887775857,0.0104,118020.0,118010.0,1.20812883]
[1752887776105,0.0104,118020.0,118010.0,1.43414875]
[1752887776318,0.0104,118020.0,118010.0,2.27273075]
[1752887776548,0.0104,118020.0,118010.0,2.04671083]
[1752887779728,0.0104,118020.0,118010.0,1.59467099]
[1752887779966,0.0263,118020.0,118010.0,1.35181683]
[1752887780612,0.0104,118020.0,118010.0,1.35181683]
[1752887780819,0.0104,118020.0,118010.0,1.20812883]
[1752887781032,0.0104,118020.0,118010.0,1.78247683]
[1752887781700,0.0104,118020.0,118010.0,1.63862083]
[1752887783244,0.0104,118020.0,118010.0,1.33813683]
[1752887783515,0.0265,118020.0,118010.0,1.33813683]
[1752887783720,0.0265,118020.0,118010.0,1.32457183]
[1752887784809,0.0415,118020.0,118010.0,1.20812883]
[1752887785661,0.04683,118020.0,118010.0,1.20812883]
[1752887786377,0.04683,118020.0,118010.0,1.51781983]
[1752887786583,0.0265,118020.0,118010.0,1.51781983]
[1752887787011,0.0265,118020.0,118010.0,1.74366077]
[1752887787675,0.0265,118020.0,118010.0,1.68178677]
[1752887788571,0.0265,118020.0,118010.0,1.59757577]
[1752887788789,0.0265,118020.0,118010.0,1.58220977]
[1752887790803,0.0265,118020.0,118010.0,0.90432899]
[1752887791022,0.0265,118020.0,118010.0,1.58220977]
[1752887792927,0.0265,118020.0,118010.0,0.90432899]
[1752887793134,0.0265,118020.0,118010.0,1.58220977]
[1752887793564,0.0265,118020.0,118010.0,0.90432899]
[1752887793779,0.0265,118020.0,118010.0,1.58220977]
[1752887794267,0.0165,118020.0,118010.0,1.58220977]
[1752887794716,0.0004,118020.0,118010.0,1.58523977]
[1752887795154,0.0004,118020.0,118010.0,1.58220977]
[1752887795853,0.0166,118020.0,118010.0,1.58220977]
[1752887796648,0.0166,118020.0,118010.0,1.78497977]
[1752887797549,0.0166,118020.0,118010.0,1.74607377]
[1752887797775,0.0166,118020.0,118010.0,1.62238977]
[1752887801605,0.0329,118020.0,118010.0,1.62238977]
[1752887804343,0.0329,118020.0,118010.0,1.43396977]
[1752887805420,0.0166,118020.0,118010.0,1.59240177]
[1752887807919,0.0166,118020.0,118010.0,1.43396977]
[1752887808374,0.0329,118020.0,118010.0,1.43396977]
[1752887808700,0.03823,118020.0,118010.0,1.43396977]
[1752887808907,0.03823,118020.0,118010.0,1.53560977]
[1752887810152,0.03823,118020.0,118010.0,0.85772899]
[1752887810355,0.03823,118020.0,118010.0,1.53560977]
[1752887811044,0.03823,118020.0,118010.0,1.63839577]
[1752887811688,0.03823,118020.0,118010.0,1.53560977]
[1752887811871,0.03506,118020.0,118010.0,1.53560977]
[1752887812110,0.03506,118020.0,118010.0,1.63839577]
[1752887812327,0.03506,118020.0,118010.0,0.85772899]
[1752887812601,0.03823,118020.0,118010.0,1.29300866]
[1752887814220,0.03823,118020.0,118010.0,0.88596866]
[1752887814652,0.03823,118020.0,118010.0,0.95296866]
[1752887814870,0.03823,118020.0,118010.0,0.88596866]
[1752887815088,0.03823,118020.0,118010.0,0.95296866]
[1752887815308,0.06364804,118020.0,118010.0,0.88596866]
[1752887815518,0.07212103,118020.0,118010.0,0.95296866]
[1752887815700,0.08059417,118020.0,118010.0,0.8859688]
[1752887815968,0.08059417,118020.0,118010.0,0.57449826]
[1752887816179,0.06364898,118020.0,118010.0,0.63302477]
[1752887816399,0.23311178,118020.0,118010.0,0.37960026]
[1752887816621,0.22674608,118020.0,118010.0,0.32960026]
[1752887816839,0.22674608,118020.0,118010.0,0.39660026]
[1752887817279,0.22674608,118020.0,118010.0,0.39560026]
[1752887817501,0.22674608,118020.0,118010.0,0.32860026]
[1752887817725,0.22674608,118020.0,118000.0,0.22596026]
[1752887817726,0.20935087,118010.0,118000.0,0.22596026]
[1752887817954,0.29339428,118010.0,118000.0,0.51892052]
[1752887818135,0.29653428,118010.0,118000.0,0.51892052]
[1752887818685,0.22294451,118010.0,118000.0,0.52739502]
[1752887819103,0.22294451,118010.0,118000.0,0.30162935]
[1752887819307,0.21447087,118010.0,118000.0,0.29315485]
[1752887819926,0.21447087,118010.0,118000.0,0.47112087]
[1752887820122,0.21447087,118010.0,118000.0,0.4795953]
[1752887820411,0.06194034,118010.0,118000.0,0.49654365]
[1752887820619,0.04499328,118010.0,118000.0,0.49654365]
[1752887820832,0.05346677,118010.0,118000.0,0.49654365]
[1752887821044,0.06194048,118010.0,118000.0,0.49654365]
[1752887821264,0.11996797,118010.0,118000.0,0.49654365]
[1752887821898,0.1114944,118010.0,118000.0,0.49654365]
[1752887822262,0.11996797,118010.0,118000.0,0.49654365]
[1752887822467,0.06194034,118010.0,118000.0,0.49654365]
[1752887822668,0.07041405,118010.0,118000.0,0.48806958]
[1752887822869,0.0788884,118010.0,118000.0,0.49654379]
[1752887823052,0.07041491,118010.0,118000.0,0.49654379]
[1752887823651,0.2314185,118010.0,118000.0,0.48806958]
[1752887823974,0.30554663,118010.0,118000.0,0.49654379]
[1752887824187,0.13606947,118010.0,118000.0,0.49654379]
[1752887824365,0.13606947,118010.0,118000.0,0.50501793]
[1752887824366,0.12759562,118010.0,118000.0,0.50501793]
[1752887824907,0.12759562,118010.0,118000.0,0.27038858]
[1752887825132,0.13606947,118010.0,118000.0,0.48806929]
[1752887825766,0.13606947,118010.0,118000.0,0.47959508]
[1752887826181,0.13606947,118010.0,118000.0,0.48806929]
[1752887826733,0.12759562,118010.0,118000.0,0.49654343]
[1752887826947,0.05346749,118010.0,118000.0,0.5050175]
[1752887827417,0.06195908,118010.0,118000.0,0.5050175]
[1752887827829,0.06195908,118010.0,118000.0,0.49654343]
[1752887828037,0.07043293,118010.0,118000.0,0.49654343]
[1752887828264,0.11998836,118010.0,118000.0,0.5050175]
[1752887828551,0.12846214,118010.0,118000.0,0.49654343]
[1752887828761,0.13693599,118010.0,118000.0,0.49654343]
[1752887829432,0.13693599,118010.0,118000.0,0.48806929]
[1752887829642,0.12846214,118010.0,118000.0,0.49654343]
[1752887830060,0.10304116,118010.0,118000.0,0.5050175]